[Event "Titled Tuesday Blitz May 24 Early 2022"]
[White "Ferreira, Vitor Hugo Vieira"]
[Black "Antipov, Mikhail Al."]
[WhiteFideId "2119765"]
[BlackFideId "4107012"]
[WhiteElo "2165"]
[BlackElo "2512"]
[Result "0-1"]
[Round "01"]
[TimeControl "180+1"]
[Date "2022.05.24"]
[WhiteClock "0:00:08"]
[BlackClock "0:00:07"]

1. Nf3 {[%clk 0:02:58]}  Nf6 {[%clk 0:02:59]} 2. g3 {[%clk 0:02:57]}  g6 {[%clk 0:02:59]} 3. Bg2 {[%clk 0:02:58]}  Bg7 {[%clk 0:02:59]} 4. O-O {[%clk 0:02:59]}  O-O {[%clk 0:02:59]} 5. c4 {[%clk 0:02:59]}  d6 {[%clk 0:02:58]} 6. d4 {[%clk 0:02:58]}  Bf5 {[%clk 0:02:58]} 7. Qb3 {[%clk 0:02:53]}  Qc8 {[%clk 0:02:57]} 8. Nc3 {[%clk 0:02:47]}  Nc6 {[%clk 0:02:51]} 9. d5 {[%clk 0:02:44]}  Na5 {[%clk 0:02:51]} 10. Qa4 {[%clk 0:02:43]}  b6 {[%clk 0:02:50]} 11. Nd4 {[%clk 0:02:42]}  Bd7 {[%clk 0:02:42]} 12. Qb4 {[%clk 0:02:34]}  Ng4 {[%clk 0:02:27]} 13. Nb3 {[%clk 0:02:32]}  c5 {[%clk 0:02:23]} 14. dxc6 {[%clk 0:02:31]}  Nxc6 {[%clk 0:02:23]} 15. Qa3 {[%clk 0:02:27]}  Nge5 {[%clk 0:02:23]} 16. Nd2 {[%clk 0:02:23]}  Nd4 {[%clk 0:02:15]} 17. Nd5 {[%clk 0:02:01]}  Re8 {[%clk 0:02:02]} 18. Be4 {[%clk 0:01:58]}  Nxe2+ {[%clk 0:01:43]} 19. Kh1 {[%clk 0:01:58]}  Nxc4 {[%clk 0:01:33]} 20. Qd3 {[%clk 0:01:45]}  e6 {[%clk 0:00:38]} 21. Qxc4 {[%clk 0:01:27]}  exd5 {[%clk 0:00:24]} 22. Bxd5 {[%clk 0:01:27]}  Be6 {[%clk 0:00:23]} 23. Bxe6 {[%clk 0:01:24]}  Rxe6 {[%clk 0:00:22]} 24. Rb1 {[%clk 0:01:13]}  Qb7+ {[%clk 0:00:20]} 25. f3 {[%clk 0:01:08]}  Rc8 {[%clk 0:00:21]} 26. Qd3 {[%clk 0:01:06]}  d5 {[%clk 0:00:18]} 27. Nb3 {[%clk 0:01:05]}  Rce8 {[%clk 0:00:15]} 28. Bd2 {[%clk 0:00:58]}  d4 {[%clk 0:00:15]} 29. Rbe1 {[%clk 0:00:53]}  h5 {[%clk 0:00:15]} 30. Nc1 {[%clk 0:00:47]}  Qe7 {[%clk 0:00:09]} 31. Nb3 {[%clk 0:00:31]}  Qd7 {[%clk 0:00:08]} 32. Kg2 {[%clk 0:00:27]}  h4 {[%clk 0:00:07]} 33. gxh4 {[%clk 0:00:27]}  Re3 {[%clk 0:00:03]} 34. Bxe3 {[%clk 0:00:26]}  Rxe3 {[%clk 0:00:04]} 35. Qxe2 {[%clk 0:00:20]}  Rxe2+ {[%clk 0:00:03]} 36. Rxe2 {[%clk 0:00:21]}  d3 {[%clk 0:00:04]} 37. Rd2 {[%clk 0:00:21]}  Bh6 {[%clk 0:00:04]} 38. f4 {[%clk 0:00:18]}  Qg4+ {[%clk 0:00:03]} 39. Kh1 {[%clk 0:00:18]}  Qh3 {[%clk 0:00:03]} 40. Rfd1 {[%clk 0:00:17]}  Qf3+ {[%clk 0:00:03]} 41. Kg1 {[%clk 0:00:16]}  Bxf4 {[%clk 0:00:04]} 42. Rxd3 {[%clk 0:00:16]}  Be3+ {[%clk 0:00:04]} 43. Rxe3 {[%clk 0:00:16]}  Qxe3+ {[%clk 0:00:05]} 44. Kf1 {[%clk 0:00:17]}  Qf3+ {[%clk 0:00:05]} 45. Ke1 {[%clk 0:00:17]}  Qh1+ {[%clk 0:00:06]} 46. Kd2 {[%clk 0:00:18]}  Qxh2+ {[%clk 0:00:07]} 47. Kc3 {[%clk 0:00:18]}  Qxh4 {[%clk 0:00:08]} 48. Rd7 {[%clk 0:00:16]}  Qf6+ {[%clk 0:00:08]} 49. Rd4 {[%clk 0:00:14]}  a6 {[%clk 0:00:07]} 50. Nd2 {[%clk 0:00:14]}  Kg7 {[%clk 0:00:07]} 51. Ne4 {[%clk 0:00:15]}  Qc6+ {[%clk 0:00:07]} 52. Kd3 {[%clk 0:00:15]}  f5 {[%clk 0:00:08]} 53. Nc3 {[%clk 0:00:15]}  b5 {[%clk 0:00:08]} 54. a3 {[%clk 0:00:14]}  g5 {[%clk 0:00:08]} 55. Rd5 {[%clk 0:00:12]}  Kg6 {[%clk 0:00:08]} 56. Kd4 {[%clk 0:00:12]}  g4 {[%clk 0:00:08]} 57. Ke5 {[%clk 0:00:13]}  Qf6+ {[%clk 0:00:07]} 58. Kf4 {[%clk 0:00:12]}  Qg5+ {[%clk 0:00:08]} 59. Ke5 {[%clk 0:00:11]}  g3 {[%clk 0:00:08]} 60. Ke6 {[%clk 0:00:11]}  g2 {[%clk 0:00:08]} 61. Ne2 {[%clk 0:00:10]}  Qe3+ {[%clk 0:00:07]} 62. Kd6 {[%clk 0:00:09]}  Qxe2 {[%clk 0:00:07]} 63. Re5 {[%clk 0:00:08]}  Qxe5+ {[%clk 0:00:07]} 0-1


[Site "https://www.chess.com"]

[Event "Titled Tuesday Blitz May 24 Early 2022"]
[White "Gaehwiler, Gabriel"]
[Black "Kuderinov, Kirill"]
[WhiteFideId "1314530"]
[BlackFideId "13701568"]
[WhiteElo "2383"]
[BlackElo "2432"]
[Result "0-1"]
[Round "01"]
[TimeControl "180+1"]
[Date "2022.05.25"]
[WhiteClock "0:00:02"]
[BlackClock "0:00:13"]

1. Nf3 {[%clk 0:02:59]}  d5 {[%clk 0:02:58]} 2. d4 {[%clk 0:03:00]}  Nf6 {[%clk 0:02:58]} 3. c4 {[%clk 0:03:01]}  e6 {[%clk 0:02:58]} 4. Nc3 {[%clk 0:03:01]}  c5 {[%clk 0:02:58]} 5. e3 {[%clk 0:03:01]}  cxd4 {[%clk 0:02:58]} 6. exd4 {[%clk 0:03:02]}  Nc6 {[%clk 0:02:57]} 7. Bd3 {[%clk 0:03:01]}  dxc4 {[%clk 0:02:56]} 8. Bxc4 {[%clk 0:03:02]}  Bb4 {[%clk 0:02:55]} 9. O-O {[%clk 0:03:02]}  O-O {[%clk 0:02:55]} 10. Bg5 {[%clk 0:03:01]}  Be7 {[%clk 0:02:54]} 11. Rc1 {[%clk 0:02:58]}  Nd5 {[%clk 0:02:50]} 12. Bd2 {[%clk 0:02:58]}  Bf6 {[%clk 0:02:49]} 13. Be3 {[%clk 0:02:55]}  Nb6 {[%clk 0:02:46]} 14. Bd3 {[%clk 0:02:53]}  h6 {[%clk 0:02:43]} 15. Bb1 {[%clk 0:02:50]}  Ne7 {[%clk 0:02:40]} 16. Ne4 {[%clk 0:02:48]}  Nf5 {[%clk 0:02:38]} 17. Bf4 {[%clk 0:02:45]}  Nd5 {[%clk 0:02:30]} 18. Nxf6+ {[%clk 0:02:44]}  Nxf6 {[%clk 0:02:28]} 19. Be5 {[%clk 0:02:39]}  Ng4 {[%clk 0:02:25]} 20. h3 {[%clk 0:02:34]}  Nxe5 {[%clk 0:02:24]} 21. dxe5 {[%clk 0:02:35]}  Ne7 {[%clk 0:02:21]} 22. Qc2 {[%clk 0:02:34]}  Ng6 {[%clk 0:02:19]} 23. Rfd1 {[%clk 0:02:33]}  Qe7 {[%clk 0:02:19]} 24. Rd4 {[%clk 0:02:33]}  Bd7 {[%clk 0:02:17]} 25. Rc4 {[%clk 0:01:32]}  Bc6 {[%clk 0:02:12]} 26. Nh4 {[%clk 0:01:29]}  Qg5 {[%clk 0:02:12]} 27. Rg4 {[%clk 0:01:21]}  Qxe5 {[%clk 0:02:11]} 28. Nxg6 {[%clk 0:01:16]}  fxg6 {[%clk 0:02:08]} 29. Qxg6 {[%clk 0:01:16]}  Rad8 {[%clk 0:01:49]} 30. Qh7+ {[%clk 0:01:05]}  Kf7 {[%clk 0:01:48]} 31. Qg6+ {[%clk 0:01:04]}  Ke7 {[%clk 0:01:41]} 32. Be4 {[%clk 0:00:50]}  Rf7 {[%clk 0:01:29]} 33. Bxc6 {[%clk 0:00:48]}  bxc6 {[%clk 0:01:30]} 34. Re4 {[%clk 0:00:44]}  Qd5 {[%clk 0:01:17]} 35. Rce1 {[%clk 0:00:42]}  Rd6 {[%clk 0:01:13]} 36. b3 {[%clk 0:00:41]}  Qf5 {[%clk 0:01:10]} 37. Qg3 {[%clk 0:00:41]}  g5 {[%clk 0:01:08]} 38. Qe3 {[%clk 0:00:38]}  a6 {[%clk 0:01:03]} 39. f3 {[%clk 0:00:36]}  Qd5 {[%clk 0:00:59]} 40. Qa7+ {[%clk 0:00:35]}  Kf8 {[%clk 0:00:58]} 41. Qxa6 {[%clk 0:00:35]}  Rf6 {[%clk 0:00:55]} 42. Qe2 {[%clk 0:00:34]}  Kf7 {[%clk 0:00:54]} 43. Rc1 {[%clk 0:00:34]}  Rf4 {[%clk 0:00:49]} 44. Rcc4 {[%clk 0:00:32]}  Qf5 {[%clk 0:00:41]} 45. a4 {[%clk 0:00:26]}  Qf6 {[%clk 0:00:35]} 46. Qc2 {[%clk 0:00:22]}  Rf5 {[%clk 0:00:29]} 47. Re1 {[%clk 0:00:22]}  c5 {[%clk 0:00:28]} 48. a5 {[%clk 0:00:21]}  Re5 {[%clk 0:00:24]} 49. Rd1 {[%clk 0:00:17]}  Rxd1+ {[%clk 0:00:23]} 50. Qxd1 {[%clk 0:00:18]}  Rd5 {[%clk 0:00:24]} 51. Qe1 {[%clk 0:00:17]}  Rd6 {[%clk 0:00:21]} 52. Rxc5 {[%clk 0:00:13]}  Qd4+ {[%clk 0:00:22]} 53. Qf2 {[%clk 0:00:14]}  Qd1+ {[%clk 0:00:20]} 54. Kh2 {[%clk 0:00:13]}  Qxb3 {[%clk 0:00:20]} 55. Rc7+ {[%clk 0:00:11]}  Kg6 {[%clk 0:00:18]} 56. Qa7 {[%clk 0:00:11]}  Qb2 {[%clk 0:00:15]} 57. Qc5 {[%clk 0:00:09]}  Rd2 {[%clk 0:00:14]} 58. Qg1 {[%clk 0:00:02]}  Qe5+ {[%clk 0:00:13]} 0-1


[Site "https://www.chess.com"]

[Event "Titled Tuesday Blitz May 24 Early 2022"]
[White "Gallego Alcaraz, Andres Felipe"]
[Black "Li, Zhuoling"]
[WhiteFideId "4402669"]
[BlackFideId "8605629"]
[WhiteElo "2340"]
[BlackElo "2336"]
[Result "1-0"]
[Round "01"]
[TimeControl "180+1"]
[Date "2022.05.25"]
[WhiteClock "0:01:05"]
[BlackClock "0:01:21"]

1. d4 {[%clk 0:02:58]}  Nf6 {[%clk 0:02:35]} 2. c4 {[%clk 0:02:57]}  g6 {[%clk 0:02:35]} 3. Nf3 {[%clk 0:02:58]}  d5 {[%clk 0:02:35]} 4. cxd5 {[%clk 0:02:56]}  Nxd5 {[%clk 0:02:34]} 5. e4 {[%clk 0:02:56]}  Nb6 {[%clk 0:02:34]} 6. h3 {[%clk 0:02:56]}  Bg7 {[%clk 0:02:35]} 7. Nc3 {[%clk 0:02:56]}  O-O {[%clk 0:02:34]} 8. Be2 {[%clk 0:02:56]}  c5 {[%clk 0:02:31]} 9. d5 {[%clk 0:02:54]}  e6 {[%clk 0:02:29]} 10. O-O {[%clk 0:02:50]}  exd5 {[%clk 0:02:28]} 11. exd5 {[%clk 0:02:47]}  Bf5 {[%clk 0:02:26]} 12. Bg5 {[%clk 0:02:43]}  Qd7 {[%clk 0:02:20]} 13. Qd2 {[%clk 0:02:38]}  Qc8 {[%clk 0:02:10]} 14. Rac1 {[%clk 0:02:35]}  Na6 {[%clk 0:02:05]} 15. Bxa6 {[%clk 0:02:20]}  bxa6 {[%clk 0:02:05]} 16. Bh6 {[%clk 0:02:19]}  Qb7 {[%clk 0:01:57]} 17. Bxg7 {[%clk 0:02:18]}  Kxg7 {[%clk 0:01:57]} 18. Rfd1 {[%clk 0:02:18]}  Rfd8 {[%clk 0:01:56]} 19. b3 {[%clk 0:02:17]}  Rac8 {[%clk 0:01:55]} 20. Ne5 {[%clk 0:02:07]}  Rd6 {[%clk 0:01:46]} 21. Nc4 {[%clk 0:02:05]}  Nxc4 {[%clk 0:01:38]} 22. bxc4 {[%clk 0:02:06]}  Re8 {[%clk 0:01:37]} 23. Re1 {[%clk 0:02:04]}  Rdd8 {[%clk 0:01:36]} 24. g4 {[%clk 0:01:56]}  Bd7 {[%clk 0:01:35]} 25. Ne4 {[%clk 0:01:50]}  Qb4 {[%clk 0:01:29]} 26. Qxb4 {[%clk 0:01:27]}  cxb4 {[%clk 0:01:29]} 27. c5 {[%clk 0:01:28]}  f5 {[%clk 0:01:26]} 28. Nd6 {[%clk 0:01:21]}  Rxe1+ {[%clk 0:01:25]} 29. Rxe1 {[%clk 0:01:22]}  Kf6 {[%clk 0:01:25]} 30. g5+ {[%clk 0:01:05]}  Kxg5 {[%clk 0:01:22]} 31. Nf7+ {[%clk 0:01:04]}  Kf4 {[%clk 0:01:21]} 32. Nxd8 {[%clk 0:01:05]} 1-0


[Site "https://www.chess.com"]

[Event "Titled Tuesday Blitz May 24 Early 2022"]
[White "Garcia Garcia, Alejandro"]
[Black "Paravyan, David"]
[WhiteFideId "3516334"]
[BlackFideId "4194985"]
[WhiteElo "2142"]
[BlackElo "2569"]
[Result "0-1"]
[Round "01"]
[TimeControl "180+1"]
[Date "2022.05.24"]
[WhiteClock "0:00:16"]
[BlackClock "0:00:20"]

1. Nf3 {[%clk 0:03:00]}  Nf6 {[%clk 0:02:58]} 2. g3 {[%clk 0:03:01]}  g6 {[%clk 0:02:58]} 3. Bg2 {[%clk 0:03:02]}  Bg7 {[%clk 0:02:59]} 4. O-O {[%clk 0:03:02]}  O-O {[%clk 0:02:59]} 5. c4 {[%clk 0:03:03]}  c6 {[%clk 0:03:00]} 6. Nc3 {[%clk 0:03:03]}  d5 {[%clk 0:02:59]} 7. cxd5 {[%clk 0:03:04]}  cxd5 {[%clk 0:03:00]} 8. d4 {[%clk 0:03:04]}  Ne4 {[%clk 0:02:59]} 9. Nd2 {[%clk 0:03:04]}  Nf6 {[%clk 0:02:53]} 10. Nf3 {[%clk 0:03:03]}  Ne4 {[%clk 0:02:52]} 11. Nd2 {[%clk 0:03:03]}  Nxc3 {[%clk 0:02:52]} 12. bxc3 {[%clk 0:03:03]}  Nc6 {[%clk 0:02:50]} 13. e4 {[%clk 0:03:02]}  dxe4 {[%clk 0:02:44]} 14. Nxe4 {[%clk 0:03:03]}  b6 {[%clk 0:02:39]} 15. Qe2 {[%clk 0:03:01]}  Bb7 {[%clk 0:02:37]} 16. Ba3 {[%clk 0:02:58]}  Re8 {[%clk 0:02:36]} 17. Ng5 {[%clk 0:02:54]}  e6 {[%clk 0:02:30]} 18. Ne4 {[%clk 0:02:50]}  Na5 {[%clk 0:02:20]} 19. Rfd1 {[%clk 0:02:11]}  Bf8 {[%clk 0:02:12]} 20. Bxf8 {[%clk 0:02:08]}  Rxf8 {[%clk 0:02:13]} 21. c4 {[%clk 0:02:04]}  Qe7 {[%clk 0:02:05]} 22. h4 {[%clk 0:02:01]}  Rac8 {[%clk 0:02:02]} 23. Rac1 {[%clk 0:02:01]}  Ba6 {[%clk 0:01:58]} 24. Nd2 {[%clk 0:01:30]}  Qb4 {[%clk 0:01:52]} 25. Bf1 {[%clk 0:01:28]}  Rfd8 {[%clk 0:01:46]} 26. Qe5 {[%clk 0:01:28]}  Nc6 {[%clk 0:01:37]} 27. Qf4 {[%clk 0:01:16]}  Qe7 {[%clk 0:00:41]} 28. Ne4 {[%clk 0:01:12]}  e5 {[%clk 0:00:40]} 29. dxe5 {[%clk 0:01:11]}  Qxe5 {[%clk 0:00:41]} 30. Qf3 {[%clk 0:01:04]}  Nd4 {[%clk 0:00:36]} 31. Qe3 {[%clk 0:00:57]}  Bb7 {[%clk 0:00:35]} 32. Bg2 {[%clk 0:00:57]}  Bxe4 {[%clk 0:00:33]} 33. Bxe4 {[%clk 0:00:55]}  Ne6 {[%clk 0:00:32]} 34. Bd5 {[%clk 0:00:52]}  Qxe3 {[%clk 0:00:31]} 35. fxe3 {[%clk 0:00:53]}  Nc5 {[%clk 0:00:32]} 36. Rf1 {[%clk 0:00:52]}  Rd7 {[%clk 0:00:29]} 37. Rc2 {[%clk 0:00:49]}  h5 {[%clk 0:00:26]} 38. Rcf2 {[%clk 0:00:48]}  Rcc7 {[%clk 0:00:26]} 39. Rf6 {[%clk 0:00:48]}  Kg7 {[%clk 0:00:26]} 40. Kg2 {[%clk 0:00:44]}  b5 {[%clk 0:00:25]} 41. e4 {[%clk 0:00:40]}  bxc4 {[%clk 0:00:25]} 42. R6f3 {[%clk 0:00:32]}  Nd3 {[%clk 0:00:23]} 43. a4 {[%clk 0:00:24]}  Ne5 {[%clk 0:00:20]} 44. Rc3 {[%clk 0:00:24]}  Rc5 {[%clk 0:00:20]} 45. Rfc1 {[%clk 0:00:23]}  Rdc7 {[%clk 0:00:21]} 46. Kf2 {[%clk 0:00:23]}  Nd3+ {[%clk 0:00:20]} 47. Ke3 {[%clk 0:00:22]}  Nxc1 {[%clk 0:00:20]} 48. Rxc1 {[%clk 0:00:23]}  c3 {[%clk 0:00:20]} 49. Rc2 {[%clk 0:00:24]}  Kf6 {[%clk 0:00:19]} 50. Kd4 {[%clk 0:00:24]}  Ke7 {[%clk 0:00:20]} 51. Kd3 {[%clk 0:00:19]}  Kd6 {[%clk 0:00:19]} 52. Bb3 {[%clk 0:00:18]}  Ke5 {[%clk 0:00:19]} 53. Bd5 {[%clk 0:00:19]}  Rxd5+ {[%clk 0:00:18]} 54. exd5 {[%clk 0:00:19]}  Kxd5 {[%clk 0:00:19]} 55. Rc1 {[%clk 0:00:18]}  c2 {[%clk 0:00:19]} 56. Kd2 {[%clk 0:00:18]}  Kd4 {[%clk 0:00:19]} 57. a5 {[%clk 0:00:18]}  a6 {[%clk 0:00:20]} 58. Ke2 {[%clk 0:00:16]}  Kc3 {[%clk 0:00:20]} 0-1


[Site "https://www.chess.com"]

[Event "Titled Tuesday Blitz May 24 Early 2022"]
[White "Garv Gaur"]
[Black "Demchenko, Anton"]
[WhiteFideId "45030839"]
[BlackFideId "4160258"]
[WhiteElo "1950"]
[BlackElo "2539"]
[Result "0-1"]
[Round "01"]
[TimeControl "180+1"]
[Date "2022.05.24"]
[WhiteClock "0:00:08"]
[BlackClock "0:00:21"]

1. d4 {[%clk 0:03:00]}  Nf6 {[%clk 0:02:57]} 2. Nf3 {[%clk 0:03:00]}  g6 {[%clk 0:02:57]} 3. c4 {[%clk 0:03:00]}  Bg7 {[%clk 0:02:57]} 4. g3 {[%clk 0:03:00]}  O-O {[%clk 0:02:57]} 5. Bg2 {[%clk 0:03:00]}  d6 {[%clk 0:02:58]} 6. O-O {[%clk 0:03:00]}  Nbd7 {[%clk 0:02:59]} 7. Nc3 {[%clk 0:03:01]}  e5 {[%clk 0:03:00]} 8. e4 {[%clk 0:03:01]}  exd4 {[%clk 0:03:00]} 9. Nxd4 {[%clk 0:03:02]}  Nc5 {[%clk 0:03:01]} 10. h3 {[%clk 0:03:02]}  Re8 {[%clk 0:03:02]} 11. Re1 {[%clk 0:03:02]}  a5 {[%clk 0:03:02]} 12. Ndb5 {[%clk 0:03:02]}  Bd7 {[%clk 0:03:02]} 13. Bf4 {[%clk 0:03:01]}  Bxb5 {[%clk 0:03:03]} 14. Nxb5 {[%clk 0:03:01]}  Nfd7 {[%clk 0:03:04]} 15. Qc2 {[%clk 0:02:58]}  Ne5 {[%clk 0:02:38]} 16. Rad1 {[%clk 0:02:57]}  Qe7 {[%clk 0:02:18]} 17. Be3 {[%clk 0:02:42]}  Nc6 {[%clk 0:02:15]} 18. Nc3 {[%clk 0:02:38]}  Nb4 {[%clk 0:02:11]} 19. Qb1 {[%clk 0:02:37]}  c6 {[%clk 0:02:11]} 20. Bd4 {[%clk 0:02:34]}  Nba6 {[%clk 0:02:00]} 21. Bxg7 {[%clk 0:02:31]}  Kxg7 {[%clk 0:02:01]} 22. Rd2 {[%clk 0:02:32]}  Rad8 {[%clk 0:01:56]} 23. Qd1 {[%clk 0:02:31]}  h5 {[%clk 0:01:55]} 24. h4 {[%clk 0:02:29]}  Qe6 {[%clk 0:01:49]} 25. Qe2 {[%clk 0:02:28]}  Rd7 {[%clk 0:01:38]} 26. Kh2 {[%clk 0:02:25]}  Qf6 {[%clk 0:01:29]} 27. Red1 {[%clk 0:02:16]}  a4 {[%clk 0:01:05]} 28. Rd4 {[%clk 0:02:07]}  a3 {[%clk 0:01:02]} 29. bxa3 {[%clk 0:01:47]}  Ne6 {[%clk 0:00:58]} 30. R4d3 {[%clk 0:01:47]}  Nac5 {[%clk 0:00:59]} 31. Rf3 {[%clk 0:01:46]}  Nd4 {[%clk 0:00:47]} 32. Rxf6 {[%clk 0:01:32]}  Nxe2 {[%clk 0:00:48]} 33. Rf3 {[%clk 0:01:32]}  Nxc3 {[%clk 0:00:40]} 34. Rxc3 {[%clk 0:01:33]}  Nxe4 {[%clk 0:00:39]} 35. Bxe4 {[%clk 0:01:18]}  Rxe4 {[%clk 0:00:38]} 36. Kg2 {[%clk 0:01:19]}  Kf6 {[%clk 0:00:37]} 37. Rd2 {[%clk 0:01:10]}  Ke7 {[%clk 0:00:26]} 38. Rb2 {[%clk 0:01:09]}  Kd8 {[%clk 0:00:24]} 39. a4 {[%clk 0:01:07]}  Re5 {[%clk 0:00:24]} 40. Rcb3 {[%clk 0:00:58]}  Kc8 {[%clk 0:00:24]} 41. Re3 {[%clk 0:00:53]}  Rxe3 {[%clk 0:00:23]} 42. fxe3 {[%clk 0:00:54]}  Re7 {[%clk 0:00:24]} 43. Kf3 {[%clk 0:00:54]}  Re5 {[%clk 0:00:24]} 44. Kf4 {[%clk 0:00:50]}  Rc5 {[%clk 0:00:25]} 45. Rb4 {[%clk 0:00:49]}  Kc7 {[%clk 0:00:25]} 46. Ke4 {[%clk 0:00:49]}  Re5+ {[%clk 0:00:24]} 47. Kf4 {[%clk 0:00:48]}  Rf5+ {[%clk 0:00:25]} 48. Ke4 {[%clk 0:00:40]}  Rf2 {[%clk 0:00:25]} 49. Rb1 {[%clk 0:00:39]}  f5+ {[%clk 0:00:23]} 50. Kd4 {[%clk 0:00:34]}  Rxa2 {[%clk 0:00:23]} 51. e4 {[%clk 0:00:31]}  c5+ {[%clk 0:00:19]} 52. Ke3 {[%clk 0:00:28]}  Ra3+ {[%clk 0:00:19]} 53. Kf4 {[%clk 0:00:28]}  fxe4 {[%clk 0:00:20]} 54. Re1 {[%clk 0:00:27]}  Rxa4 {[%clk 0:00:19]} 55. Rxe4 {[%clk 0:00:27]}  b5 {[%clk 0:00:19]} 56. Kg5 {[%clk 0:00:14]}  Rxc4 {[%clk 0:00:19]} 57. Re7+ {[%clk 0:00:12]}  Kd8 {[%clk 0:00:20]} 58. Rb7 {[%clk 0:00:10]}  Rg4+ {[%clk 0:00:20]} 59. Kh6 {[%clk 0:00:11]}  b4 {[%clk 0:00:20]} 60. Rb8+ {[%clk 0:00:08]}  Kc7 {[%clk 0:00:21]} 61. Rg8 {[%clk 0:00:08]}  b3 {[%clk 0:00:21]} 0-1


[Site "https://www.chess.com"]

[Event "Titled Tuesday Blitz May 24 Early 2022"]
[White "Gronnestad, Anita"]
[Black "Maksimenko, Viktor"]
[WhiteFideId "1502972"]
[BlackFideId "13710478"]
[WhiteElo "1933"]
[BlackElo "2269"]
[Result "0-1"]
[Round "01"]
[TimeControl "180+1"]
[Date "2022.05.25"]
[WhiteClock "0:02:11"]
[BlackClock "0:02:08"]

1. d4 {[%clk 0:03:00]}  Nf6 {[%clk 0:02:58]} 2. c4 {[%clk 0:03:00]}  e6 {[%clk 0:02:57]} 3. Nf3 {[%clk 0:03:00]}  b6 {[%clk 0:02:54]} 4. Nc3 {[%clk 0:03:00]}  Bb4 {[%clk 0:02:54]} 5. Qc2 {[%clk 0:02:59]}  Bb7 {[%clk 0:02:53]} 6. Bd2 {[%clk 0:02:59]}  O-O {[%clk 0:02:50]} 7. e3 {[%clk 0:02:57]}  c5 {[%clk 0:02:45]} 8. Bd3 {[%clk 0:02:56]}  cxd4 {[%clk 0:02:45]} 9. exd4 {[%clk 0:02:54]}  h6 {[%clk 0:02:45]} 10. Ne4 {[%clk 0:02:50]}  Bxd2+ {[%clk 0:02:44]} 11. Nfxd2 {[%clk 0:02:50]}  d5 {[%clk 0:02:44]} 12. Nxf6+ {[%clk 0:02:49]}  Qxf6 {[%clk 0:02:45]} 13. O-O {[%clk 0:02:50]}  Qxd4 {[%clk 0:02:43]} 14. Rad1 {[%clk 0:02:45]}  Nc6 {[%clk 0:02:38]} 15. Nf3 {[%clk 0:02:36]}  Qf6 {[%clk 0:02:33]} 16. cxd5 {[%clk 0:02:36]}  Nb4 {[%clk 0:02:32]} 17. Bh7+ {[%clk 0:02:35]}  Kh8 {[%clk 0:02:31]} 18. Qb1 {[%clk 0:02:34]}  Bxd5 {[%clk 0:02:26]} 19. Be4 {[%clk 0:02:33]}  Bxa2 {[%clk 0:02:26]} 20. Qc1 {[%clk 0:02:30]}  Bd5 {[%clk 0:02:26]} 21. Rfe1 {[%clk 0:02:28]}  Rac8 {[%clk 0:02:24]} 22. Qb1 {[%clk 0:02:26]}  Bxe4 {[%clk 0:02:23]} 23. Rxe4 {[%clk 0:02:26]}  Nd5 {[%clk 0:02:23]} 24. Rg4 {[%clk 0:02:24]}  Rc7 {[%clk 0:02:20]} 25. b4 {[%clk 0:02:21]}  Rfc8 {[%clk 0:02:10]} 26. h4 {[%clk 0:02:19]}  Nc3 {[%clk 0:02:08]} 27. Qb2 {[%clk 0:02:11]}  Nxd1 {[%clk 0:02:08]} 0-1


[Site "https://www.chess.com"]

[Event "Titled Tuesday Blitz May 24 Early 2022"]
[White "Guliev, Logman"]
[Black "Boyer, Mahel"]
[WhiteFideId "13400061"]
[BlackFideId "45102422"]
[WhiteElo "2128"]
[BlackElo "2328"]
[Result "0-1"]
[Round "01"]
[TimeControl "180+1"]
[Date "2022.05.25"]
[WhiteClock "0:01:50"]
[BlackClock "0:02:38"]

1. e4 {[%clk 0:02:58]}  Nc6 {[%clk 0:02:58]} 2. Nf3 {[%clk 0:02:56]}  d5 {[%clk 0:02:59]} 3. exd5 {[%clk 0:02:55]}  Qxd5 {[%clk 0:03:00]} 4. Nc3 {[%clk 0:02:55]}  Qh5 {[%clk 0:03:00]} 5. Be2 {[%clk 0:02:53]}  Bg4 {[%clk 0:02:59]} 6. h3 {[%clk 0:02:52]}  O-O-O {[%clk 0:02:59]} 7. O-O {[%clk 0:02:44]}  Bxh3 {[%clk 0:02:58]} 8. gxh3 {[%clk 0:02:43]}  Qxh3 {[%clk 0:02:59]} 9. Nh2 {[%clk 0:02:44]}  e6 {[%clk 0:02:58]} 10. Bg4 {[%clk 0:02:43]}  Qh4 {[%clk 0:02:56]} 11. Bf3 {[%clk 0:02:31]}  Bd6 {[%clk 0:02:54]} 12. Ng4 {[%clk 0:02:02]}  h5 {[%clk 0:02:53]} 13. Ne4 {[%clk 0:01:57]}  hxg4 {[%clk 0:02:51]} 14. Nxd6+ {[%clk 0:01:52]}  Rxd6 {[%clk 0:02:52]} 15. Re1 {[%clk 0:01:52]}  gxf3 {[%clk 0:02:45]} 16. Qxf3 {[%clk 0:01:51]}  Qh2+ {[%clk 0:02:36]} 17. Kf1 {[%clk 0:01:50]}  Qh1+ {[%clk 0:02:37]} 18. Qxh1 {[%clk 0:01:49]}  Rxh1+ {[%clk 0:02:38]} 19. Ke2 {[%clk 0:01:50]}  Nd4+ {[%clk 0:02:38]} 0-1


[Site "https://www.chess.com"]

[Event "Titled Tuesday Blitz May 24 Early 2022"]
[White "Haas, Michael"]
[Black "Amgalantengis, Enkh-Amgalan"]
[WhiteFideId "1629514"]
[BlackFideId "4903536"]
[WhiteElo "1982"]
[BlackElo "1719"]
[Result "0-1"]
[Round "01"]
[TimeControl "180+1"]
[Date "2022.05.25"]
[WhiteClock "0:00:03"]
[BlackClock "0:02:07"]

1. d4 {[%clk 0:03:00]}  Nf6 {[%clk 0:02:59]} 2. c4 {[%clk 0:03:00]}  g6 {[%clk 0:02:59]} 3. g3 {[%clk 0:03:00]}  Bg7 {[%clk 0:02:59]} 4. Bg2 {[%clk 0:03:01]}  O-O {[%clk 0:03:00]} 5. Nc3 {[%clk 0:03:01]}  c5 {[%clk 0:03:00]} 6. d5 {[%clk 0:02:52]}  d6 {[%clk 0:03:00]} 7. e4 {[%clk 0:02:49]}  Na6 {[%clk 0:03:01]} 8. Nf3 {[%clk 0:02:48]}  Nc7 {[%clk 0:03:01]} 9. O-O {[%clk 0:02:48]}  a6 {[%clk 0:03:01]} 10. a4 {[%clk 0:02:48]}  Bg4 {[%clk 0:03:01]} 11. h3 {[%clk 0:02:47]}  Bxf3 {[%clk 0:03:02]} 12. Bxf3 {[%clk 0:02:48]}  Rb8 {[%clk 0:03:02]} 13. Be3 {[%clk 0:02:44]}  Nd7 {[%clk 0:02:57]} 14. Qd2 {[%clk 0:02:39]}  b5 {[%clk 0:02:56]} 15. axb5 {[%clk 0:02:38]}  axb5 {[%clk 0:02:57]} 16. Be2 {[%clk 0:02:20]}  bxc4 {[%clk 0:02:55]} 17. f4 {[%clk 0:02:17]}  Nb5 {[%clk 0:02:52]} 18. Bxc4 {[%clk 0:02:12]}  Nd4 {[%clk 0:02:53]} 19. Ra2 {[%clk 0:01:50]}  Rb4 {[%clk 0:02:51]} 20. Bd3 {[%clk 0:01:07]}  Qb6 {[%clk 0:02:49]} 21. Na4 {[%clk 0:00:28]}  Qb7 {[%clk 0:02:49]} 22. Nc3 {[%clk 0:00:25]}  Rb8 {[%clk 0:02:47]} 23. Nd1 {[%clk 0:00:23]}  Rb3 {[%clk 0:02:41]} 24. Bc4 {[%clk 0:00:17]}  Rb4 {[%clk 0:02:35]} 25. Bd3 {[%clk 0:00:15]}  f5 {[%clk 0:02:24]} 26. exf5 {[%clk 0:00:13]}  Qxd5 {[%clk 0:02:22]} 27. Nc3 {[%clk 0:00:09]}  Nf3+ {[%clk 0:02:17]} 28. Rxf3 {[%clk 0:00:04]}  Qxf3 {[%clk 0:02:18]} 29. Be4 {[%clk 0:00:04]}  Qxg3+ {[%clk 0:02:18]} 30. Bg2 {[%clk 0:00:04]}  Rxb2 {[%clk 0:02:11]} 31. Rxb2 {[%clk 0:00:04]}  Rxb2 {[%clk 0:02:11]} 32. Qxb2 {[%clk 0:00:02]}  Qxe3+ {[%clk 0:02:11]} 33. Kh2 {[%clk 0:00:03]}  Bxc3 {[%clk 0:02:11]} 34. Qa2+ {[%clk 0:00:03]}  Kf8 {[%clk 0:02:09]} 35. Qa8+ {[%clk 0:00:03]}  Kg7 {[%clk 0:02:09]} 36. f6+ {[%clk 0:00:03]}  Nxf6 {[%clk 0:02:09]} 37. Qb7 {[%clk 0:00:02]}  Qxf4+ {[%clk 0:02:08]} 38. Kh1 {[%clk 0:00:03]}  Qc1+ {[%clk 0:02:07]} 39. Kh2 {[%clk 0:00:03]}  Be5# {[%clk 0:02:07]} 0-1


[Site "https://www.chess.com"]